[Event "Titled Tuesday Blitz August 1 Early 2023"]
[White "Molenda, Marcin"]
[Black "Georg, Heinz"]
[WhiteFideId "1173065"]
[BlackFideId "4607295"]
[WhiteElo "2492"]
[BlackElo "2298"]
[Result "0-1"]
[Round "2"]
[TimeControl "180+1"]
[Date "2023.08.01"]
[WhiteClock "0:00:55"]
[BlackClock "0:00:52"]
[Board "203"]

1. e4 {[%clk 0:03:00]}  e5 {[%clk 0:03:00]} 2. Nf3 {[%clk 0:03:00]}  Nc6 {[%clk 0:03:00]} 3. d4 {[%clk 0:03:01]}  exd4 {[%clk 0:02:59]} 4. Nxd4 {[%clk 0:03:01]}  Nf6 {[%clk 0:02:59]} 5. Nc3 {[%clk 0:03:01]}  Bb4 {[%clk 0:02:58]} 6. Nxc6 {[%clk 0:03:01]}  bxc6 {[%clk 0:02:58]} 7. Bd3 {[%clk 0:03:01]}  d5 {[%clk 0:02:57]} 8. exd5 {[%clk 0:03:02]}  cxd5 {[%clk 0:02:58]} 9. O-O {[%clk 0:03:03]}  O-O {[%clk 0:02:58]} 10. Bg5 {[%clk 0:03:00]}  c6 {[%clk 0:02:58]} 11. Qf3 {[%clk 0:02:59]}  h6 {[%clk 0:02:57]} 12. Bh4 {[%clk 0:02:42]}  g5 {[%clk 0:02:52]} 13. Bg3 {[%clk 0:02:42]}  Bg4 {[%clk 0:02:51]} 14. Qe3 {[%clk 0:02:09]}  d4 {[%clk 0:02:49]} 15. Qe5 {[%clk 0:02:06]}  dxc3 {[%clk 0:02:44]} 16. Rad1 {[%clk 0:02:01]}  Qe7 {[%clk 0:02:33]} 17. f3 {[%clk 0:01:54]}  Qxe5 {[%clk 0:01:54]} 18. Bxe5 {[%clk 0:01:53]}  Nd7 {[%clk 0:01:54]} 19. Bd4 {[%clk 0:01:44]}  Be6 {[%clk 0:01:48]} 20. bxc3 {[%clk 0:01:44]}  Bc5 {[%clk 0:01:47]} 21. f4 {[%clk 0:01:43]}  Bxd4+ {[%clk 0:01:46]} 22. cxd4 {[%clk 0:01:43]}  f5 {[%clk 0:01:32]} 23. Rde1 {[%clk 0:01:40]}  Bxa2 {[%clk 0:01:23]} 24. fxg5 {[%clk 0:01:40]}  hxg5 {[%clk 0:01:23]} 25. Bxf5 {[%clk 0:01:22]}  Nb6 {[%clk 0:01:15]} 26. Re7 {[%clk 0:01:19]}  Bc4 {[%clk 0:01:02]} 27. Rf3 {[%clk 0:01:12]}  Rae8 {[%clk 0:00:56]} 28. Rc7 {[%clk 0:01:05]}  Re1+ {[%clk 0:00:52]} 29. Kf2 {[%clk 0:00:55]}  Rf1+ {[%clk 0:00:52]} 0-1


[Site "https://www.chess.com"]

[Event "Titled Tuesday Blitz August 1 Early 2023"]
[White "Nord, Alexander"]
[Black "Kiremitciyan, Ari"]
[WhiteFideId "1738135"]
[BlackFideId "6373445"]
[WhiteElo "2293"]
[BlackElo "2491"]
[Result "0-1"]
[Round "2"]
[TimeControl "180+1"]
[Date "2023.08.01"]
[WhiteClock "0:00:01"]
[BlackClock "0:00:04"]
[Board "204"]

1. d4 {[%clk 0:03:00]}  Nf6 {[%clk 0:02:58]} 2. Bf4 {[%clk 0:02:59]}  d5 {[%clk 0:02:58]} 3. e3 {[%clk 0:02:58]}  c5 {[%clk 0:02:58]} 4. c3 {[%clk 0:02:56]}  Nc6 {[%clk 0:02:58]} 5. Nd2 {[%clk 0:02:55]}  e6 {[%clk 0:02:57]} 6. Ngf3 {[%clk 0:02:54]}  cxd4 {[%clk 0:02:57]} 7. exd4 {[%clk 0:02:54]}  Nh5 {[%clk 0:02:58]} 8. Be3 {[%clk 0:02:53]}  Bd6 {[%clk 0:02:57]} 9. Ne5 {[%clk 0:02:52]}  g6 {[%clk 0:02:56]} 10. g4 {[%clk 0:02:49]}  Ng7 {[%clk 0:02:55]} 11. h4 {[%clk 0:02:26]}  h5 {[%clk 0:02:39]} 12. Bg5 {[%clk 0:02:13]}  Qc7 {[%clk 0:01:52]} 13. Bf6 {[%clk 0:02:08]}  Kf8 {[%clk 0:01:31]} 14. Ndf3 {[%clk 0:01:35]}  hxg4 {[%clk 0:01:23]} 15. Nxg4 {[%clk 0:01:32]}  Rh5 {[%clk 0:01:02]} 16. Bd3 {[%clk 0:01:16]}  Ne8 {[%clk 0:00:47]} 17. Bg5 {[%clk 0:01:11]}  e5 {[%clk 0:00:36]} 18. Ngxe5 {[%clk 0:00:56]}  Nxe5 {[%clk 0:00:34]} 19. dxe5 {[%clk 0:00:56]}  Bxe5 {[%clk 0:00:32]} 20. Qe2 {[%clk 0:00:54]}  Bf4 {[%clk 0:00:18]} 21. Rg1 {[%clk 0:00:18]}  Be6 {[%clk 0:00:18]} 22. Nd4 {[%clk 0:00:16]}  Bxg5 {[%clk 0:00:12]} 23. hxg5 {[%clk 0:00:16]}  Bd7 {[%clk 0:00:11]} 24. O-O-O {[%clk 0:00:15]}  Qf4+ {[%clk 0:00:10]} 25. Kb1 {[%clk 0:00:15]}  Rxg5 {[%clk 0:00:09]} 26. Rxg5 {[%clk 0:00:14]}  Qxg5 {[%clk 0:00:10]} 27. Rh1 {[%clk 0:00:13]}  Kg7 {[%clk 0:00:09]} 28. Qf3 {[%clk 0:00:12]}  Nf6 {[%clk 0:00:08]} 29. Re1 {[%clk 0:00:08]}  Re8 {[%clk 0:00:08]} 30. Rxe8 {[%clk 0:00:05]}  Bxe8 {[%clk 0:00:09]} 31. Qe2 {[%clk 0:00:04]}  Bd7 {[%clk 0:00:05]} 32. Qf1 {[%clk 0:00:04]}  Qf4 {[%clk 0:00:04]} 33. Qe2 {[%clk 0:00:03]}  Ne4 {[%clk 0:00:04]} 34. a3 {[%clk 0:00:03]}  Qxf2 {[%clk 0:00:02]} 35. Bxe4 {[%clk 0:00:02]}  Qxe2 {[%clk 0:00:02]} 36. Nxe2 {[%clk 0:00:03]}  dxe4 {[%clk 0:00:03]} 37. Ng3 {[%clk 0:00:01]}  f5 {[%clk 0:00:04]} 38. Kc2 {[%clk 0:00:01]}  Kf6 {[%clk 0:00:03]} 39. c4 {[%clk 0:00:02]}  Ke5 {[%clk 0:00:04]} 40. b4 {[%clk 0:00:02]}  f4 {[%clk 0:00:04]} 41. Kd2 {[%clk 0:00:01]}  fxg3 {[%clk 0:00:04]} 0-1


[Site "https://www.chess.com"]

[Event "Titled Tuesday Blitz August 1 Early 2023"]
[White "Fernandez Siles, Luis"]
[Black "Kaplan, Avi Harrison"]
[WhiteFideId "2209420"]
[BlackFideId "30934559"]
[WhiteElo "2286"]
[BlackElo "2486"]
[Result "0-1"]
[Round "2"]
[TimeControl "180+1"]
[Date "2023.08.01"]
[WhiteClock "0:00:01"]
[BlackClock "0:00:06"]
[Board "206"]

1. e4 {[%clk 0:03:00]}  b6 {[%clk 0:02:56]} 2. Nc3 {[%clk 0:02:59]}  Bb7 {[%clk 0:02:56]} 3. f4 {[%clk 0:02:54]}  e6 {[%clk 0:02:48]} 4. d4 {[%clk 0:02:45]}  Bb4 {[%clk 0:02:45]} 5. Bd3 {[%clk 0:02:41]}  c5 {[%clk 0:02:39]} 6. a3 {[%clk 0:02:36]}  Ba5 {[%clk 0:02:37]} 7. b4 {[%clk 0:02:23]}  cxb4 {[%clk 0:02:31]} 8. Nb5 {[%clk 0:02:23]}  d6 {[%clk 0:02:06]} 9. e5 {[%clk 0:02:12]}  b3+ {[%clk 0:01:59]} 10. Kf1 {[%clk 0:02:03]}  dxe5 {[%clk 0:01:59]} 11. fxe5 {[%clk 0:01:51]}  bxc2 {[%clk 0:01:19]} 12. Qg4 {[%clk 0:01:45]}  Kf8 {[%clk 0:01:13]} 13. Nd6 {[%clk 0:01:32]}  Ba6 {[%clk 0:01:09]} 14. Bxa6 {[%clk 0:01:21]}  Nxa6 {[%clk 0:01:10]} 15. Nf3 {[%clk 0:01:10]}  h6 {[%clk 0:00:52]} 16. Qf4 {[%clk 0:00:20]}  Qe7 {[%clk 0:00:47]} 17. Nh4 {[%clk 0:00:20]}  g5 {[%clk 0:00:32]} 18. Qf3 {[%clk 0:00:20]}  gxh4 {[%clk 0:00:31]} 19. Qxa8+ {[%clk 0:00:20]}  Kg7 {[%clk 0:00:28]} 20. Qf3 {[%clk 0:00:19]}  Qc7 {[%clk 0:00:19]} 21. g3 {[%clk 0:00:17]}  h3 {[%clk 0:00:18]} 22. Qg4+ {[%clk 0:00:17]}  Kf8 {[%clk 0:00:19]} 23. Qxh3 {[%clk 0:00:16]}  Ne7 {[%clk 0:00:20]} 24. Kg2 {[%clk 0:00:15]}  Nc8 {[%clk 0:00:18]} 25. Rf1 {[%clk 0:00:15]}  Nxd6 {[%clk 0:00:17]} 26. exd6 {[%clk 0:00:14]}  Qxd6 {[%clk 0:00:18]} 27. Qh5 {[%clk 0:00:15]}  Qd5+ {[%clk 0:00:17]} 28. Qf3 {[%clk 0:00:14]}  Bc3 {[%clk 0:00:16]} 29. Qxd5 {[%clk 0:00:12]}  exd5 {[%clk 0:00:14]} 30. Ra2 {[%clk 0:00:13]}  Bxd4 {[%clk 0:00:14]} 31. Rxc2 {[%clk 0:00:13]}  Bc5 {[%clk 0:00:13]} 32. Rd2 {[%clk 0:00:13]}  Nc7 {[%clk 0:00:12]} 33. Bb2 {[%clk 0:00:13]}  Rg8 {[%clk 0:00:12]} 34. Rf6 {[%clk 0:00:12]}  Ke7 {[%clk 0:00:09]} 35. Rxh6 {[%clk 0:00:12]}  Ne6 {[%clk 0:00:07]} 36. Bf6+ {[%clk 0:00:13]}  Kd7 {[%clk 0:00:07]} 37. Rxd5+ {[%clk 0:00:12]}  Kc6 {[%clk 0:00:08]} 38. Rhh5 {[%clk 0:00:12]}  Nf4+ {[%clk 0:00:07]} 39. Kf3 {[%clk 0:00:09]}  Nxd5 {[%clk 0:00:07]} 40. Bb2 {[%clk 0:00:08]}  Rg6 {[%clk 0:00:07]} 41. Rf5 {[%clk 0:00:08]}  Re6 {[%clk 0:00:05]} 42. h4 {[%clk 0:00:06]}  Re3+ {[%clk 0:00:05]} 43. Kg4 {[%clk 0:00:07]}  Re4+ {[%clk 0:00:05]} 44. Kh3 {[%clk 0:00:05]}  Re2 {[%clk 0:00:05]} 45. Be5 {[%clk 0:00:05]}  Bd6 {[%clk 0:00:04]} 46. Bxd6 {[%clk 0:00:05]}  Kxd6 {[%clk 0:00:05]} 47. Rxf7 {[%clk 0:00:06]}  a5 {[%clk 0:00:06]} 48. h5 {[%clk 0:00:05]}  Ke6 {[%clk 0:00:06]} 49. Rb7 {[%clk 0:00:05]}  Re1 {[%clk 0:00:06]} 50. g4 {[%clk 0:00:04]}  Ra1 {[%clk 0:00:06]} 51. g5 {[%clk 0:00:04]}  Rxa3+ {[%clk 0:00:06]} 52. Kg4 {[%clk 0:00:04]}  Ra4+ {[%clk 0:00:07]} 53. Kg3 {[%clk 0:00:03]}  Kf5 {[%clk 0:00:08]} 54. g6 {[%clk 0:00:03]}  Rg4+ {[%clk 0:00:05]} 55. Kf3 {[%clk 0:00:03]}  Rg5 {[%clk 0:00:04]} 56. h6 {[%clk 0:00:02]}  Rxg6 {[%clk 0:00:04]} 57. h7 {[%clk 0:00:02]}  Rh6 {[%clk 0:00:05]} 58. Rd7 {[%clk 0:00:02]}  Nf6 {[%clk 0:00:04]} 59. Rb7 {[%clk 0:00:01]}  Rxh7 {[%clk 0:00:04]} 60. Rxb6 {[%clk 0:00:02]}  Ra7 {[%clk 0:00:04]} 61. Rb5+ {[%clk 0:00:01]}  Ke6 {[%clk 0:00:03]} 62. Kf4 {[%clk 0:00:01]}  Nd5+ {[%clk 0:00:04]} 63. Ke4 {[%clk 0:00:01]}  Nc3+ {[%clk 0:00:05]} 64. Kd4 {[%clk 0:00:02]}  Nxb5+ {[%clk 0:00:05]} 65. Kc5 {[%clk 0:00:01]}  Nc7 {[%clk 0:00:06]} 0-1


[Site "https://www.chess.com"]

[Event "Titled Tuesday Blitz August 1 Early 2023"]
[White "Xavier_mompel"]
[Black "Yashmetov, Mikhail"]
[BlackFideId "24198900"]
[WhiteElo "2277"]
[BlackElo "2477"]
[Result "1-0"]
[Round "2"]
[TimeControl "180+1"]
[Date "2023.08.01"]
[WhiteClock "0:00:31"]
[BlackClock "0:00:19"]
[Board "210"]

1. e4 {[%clk 0:03:00]}  c5 {[%clk 0:02:58]} 2. Nf3 {[%clk 0:03:00]}  Nc6 {[%clk 0:02:59]} 3. d4 {[%clk 0:03:00]}  cxd4 {[%clk 0:03:00]} 4. Nxd4 {[%clk 0:03:01]}  Nf6 {[%clk 0:03:00]} 5. Nc3 {[%clk 0:03:01]}  e5 {[%clk 0:03:00]} 6. Ndb5 {[%clk 0:03:01]}  d6 {[%clk 0:03:00]} 7. Bg5 {[%clk 0:03:00]}  a6 {[%clk 0:03:01]} 8. Na3 {[%clk 0:03:00]}  b5 {[%clk 0:03:01]} 9. Nd5 {[%clk 0:03:01]}  Be7 {[%clk 0:03:02]} 10. Bxf6 {[%clk 0:03:01]}  Bxf6 {[%clk 0:03:02]} 11. c3 {[%clk 0:03:01]}  O-O {[%clk 0:03:02]} 12. Nc2 {[%clk 0:03:02]}  Bg5 {[%clk 0:03:03]} 13. h4 {[%clk 0:03:01]}  Bh6 {[%clk 0:03:03]} 14. g3 {[%clk 0:02:59]}  Ne7 {[%clk 0:02:46]} 15. Ncb4 {[%clk 0:02:45]}  Be6 {[%clk 0:02:27]} 16. Bh3 {[%clk 0:02:41]}  a5 {[%clk 0:02:20]} 17. Nxe7+ {[%clk 0:02:24]}  Qxe7 {[%clk 0:02:21]} 18. Nd5 {[%clk 0:02:24]}  Qb7 {[%clk 0:02:20]} 19. Qd3 {[%clk 0:02:06]}  Bxd5 {[%clk 0:02:15]} 20. Qxd5 {[%clk 0:01:55]}  Qxd5 {[%clk 0:02:15]} 21. exd5 {[%clk 0:01:56]}  f5 {[%clk 0:02:15]} 22. O-O {[%clk 0:01:41]}  Rac8 {[%clk 0:02:14]} 23. g4 {[%clk 0:01:29]}  Rc5 {[%clk 0:02:06]} 24. g5 {[%clk 0:01:24]}  Rxd5 {[%clk 0:01:57]} 25. gxh6 {[%clk 0:01:23]}  Rd3 {[%clk 0:01:58]} 26. Kh2 {[%clk 0:01:11]}  g6 {[%clk 0:01:49]} 27. Rad1 {[%clk 0:01:10]}  Rxd1 {[%clk 0:01:48]} 28. Rxd1 {[%clk 0:01:11]}  Rd8 {[%clk 0:01:48]} 29. Rd5 {[%clk 0:01:09]}  b4 {[%clk 0:01:48]} 30. c4 {[%clk 0:01:03]}  a4 {[%clk 0:01:46]} 31. c5 {[%clk 0:01:01]}  Kf7 {[%clk 0:01:42]} 32. Rxd6 {[%clk 0:00:59]}  Rxd6 {[%clk 0:01:40]} 33. cxd6 {[%clk 0:00:59]}  Ke6 {[%clk 0:01:41]} 34. Kg2 {[%clk 0:00:58]}  Kxd6 {[%clk 0:01:41]} 35. Kf3 {[%clk 0:00:58]}  Kd5 {[%clk 0:01:39]} 36. Ke3 {[%clk 0:00:54]}  f4+ {[%clk 0:01:37]} 37. Ke2 {[%clk 0:00:54]}  a3 {[%clk 0:01:22]} 38. bxa3 {[%clk 0:00:44]}  bxa3 {[%clk 0:01:22]} 39. Bg2+ {[%clk 0:00:42]}  Kd4 {[%clk 0:01:22]} 40. Kd2 {[%clk 0:00:41]}  e4 {[%clk 0:01:22]} 41. Bf1 {[%clk 0:00:40]}  e3+ {[%clk 0:00:53]} 42. fxe3+ {[%clk 0:00:40]}  fxe3+ {[%clk 0:00:54]} 43. Ke2 {[%clk 0:00:39]}  Ke4 {[%clk 0:00:54]} 44. Bg2+ {[%clk 0:00:40]}  Kf4 {[%clk 0:00:54]} 45. Bd5 {[%clk 0:00:40]}  Kg4 {[%clk 0:00:52]} 46. Kxe3 {[%clk 0:00:37]}  Kxh4 {[%clk 0:00:52]} 47. Bg8 {[%clk 0:00:37]}  Kh5 {[%clk 0:00:52]} 48. Bxh7 {[%clk 0:00:38]}  Kxh6 {[%clk 0:00:53]} 49. Bg8 {[%clk 0:00:38]}  Kg7 {[%clk 0:00:54]} 50. Bd5 {[%clk 0:00:38]}  Kf6 {[%clk 0:00:53]} 51. Kd3 {[%clk 0:00:36]}  Ke5 {[%clk 0:00:52]} 52. Ba8 {[%clk 0:00:36]}  Kd6 {[%clk 0:00:35]} 53. Kc3 {[%clk 0:00:36]}  Kc5 {[%clk 0:00:35]} 54. Kb3 {[%clk 0:00:36]}  Kb5 {[%clk 0:00:35]} 55. Kxa3 {[%clk 0:00:36]}  Ka5 {[%clk 0:00:36]} 56. Kb3 {[%clk 0:00:36]}  g5 {[%clk 0:00:32]} 57. a4 {[%clk 0:00:35]}  g4 {[%clk 0:00:32]} 58. Bg2 {[%clk 0:00:35]}  Kb6 {[%clk 0:00:23]} 59. Kb4 {[%clk 0:00:35]}  Ka6 {[%clk 0:00:24]} 60. a5 {[%clk 0:00:34]}  Ka7 {[%clk 0:00:24]} 61. Kb5 {[%clk 0:00:34]}  g3 {[%clk 0:00:24]} 62. Bf3 {[%clk 0:00:33]}  Kb8 {[%clk 0:00:19]} 63. Kb6 {[%clk 0:00:31]} 1-0


[Site "https://www.chess.com"]

[Event "Titled Tuesday Blitz August 1 Early 2023"]
[White "Bettalli, Francesco"]
[Black "Warchol, Kamil"]
[WhiteFideId "2816453"]
[BlackFideId "21858241"]
[WhiteElo "2475"]
[BlackElo "2276"]
[Result "1-0"]
[Round "2"]
[TimeControl "180+1"]
[Date "2023.08.01"]
[WhiteClock "0:01:46"]
[BlackClock "0:00:00"]
[Board "211"]

1. e4 {[%clk 0:03:00]}  c5 {[%clk 0:02:59]} 2. Nc3 {[%clk 0:02:59]}  a6 {[%clk 0:02:59]} 3. g3 {[%clk 0:02:58]}  b5 {[%clk 0:02:58]} 4. Bg2 {[%clk 0:02:59]}  e6 {[%clk 0:02:58]} 5. Nge2 {[%clk 0:02:59]}  Bb7 {[%clk 0:02:56]} 6. O-O {[%clk 0:02:59]}  Nf6 {[%clk 0:02:55]} 7. d4 {[%clk 0:02:58]}  cxd4 {[%clk 0:02:54]} 8. Nxd4 {[%clk 0:02:59]}  b4 {[%clk 0:02:51]} 9. Nd5 {[%clk 0:02:54]}  exd5 {[%clk 0:02:28]} 10. exd5 {[%clk 0:02:55]}  Bc5 {[%clk 0:02:07]} 11. Nb3 {[%clk 0:02:55]}  Bb6 {[%clk 0:02:05]} 12. Qe1+ {[%clk 0:02:54]}  Kf8 {[%clk 0:02:01]} 13. Qxb4+ {[%clk 0:02:54]}  Kg8 {[%clk 0:01:44]} 14. Bg5 {[%clk 0:02:54]}  d6 {[%clk 0:01:33]} 15. Rfe1 {[%clk 0:02:53]}  Nbd7 {[%clk 0:01:21]} 16. Qxd6 {[%clk 0:02:51]}  Qc7 {[%clk 0:01:13]} 17. Qxc7 {[%clk 0:02:37]}  Bxc7 {[%clk 0:01:12]} 18. c4 {[%clk 0:02:38]}  Rc8 {[%clk 0:00:48]} 19. Re7 {[%clk 0:02:35]}  Kf8 {[%clk 0:00:34]} 20. Rae1 {[%clk 0:02:30]}  Re8 {[%clk 0:00:29]} 21. d6 {[%clk 0:02:19]}  Bxg2 {[%clk 0:00:25]} 22. dxc7 {[%clk 0:02:18]}  Bb7 {[%clk 0:00:25]} 23. Rxe8+ {[%clk 0:02:09]}  Nxe8 {[%clk 0:00:26]} 24. Rd1 {[%clk 0:02:10]}  Bc8 {[%clk 0:00:22]} 25. c5 {[%clk 0:02:07]}  f6 {[%clk 0:00:18]} 26. Bf4 {[%clk 0:02:05]}  Kf7 {[%clk 0:00:15]} 27. c6 {[%clk 0:02:06]}  Nb6 {[%clk 0:00:15]} 28. Rd8 {[%clk 0:02:06]}  Rg8 {[%clk 0:00:13]} 29. Be3 {[%clk 0:02:05]}  Nxc7 {[%clk 0:00:08]} 30. Rxg8 {[%clk 0:02:04]}  Kxg8 {[%clk 0:00:07]} 31. Bxb6 {[%clk 0:02:05]}  Nd5 {[%clk 0:00:06]} 32. Bd4 {[%clk 0:02:05]}  Nb4 {[%clk 0:00:05]} 33. c7 {[%clk 0:02:02]}  Nxa2 {[%clk 0:00:05]} 34. Bc5 {[%clk 0:02:01]}  Kf7 {[%clk 0:00:05]} 35. Kf1 {[%clk 0:02:01]}  Ke6 {[%clk 0:00:05]} 36. Ke1 {[%clk 0:02:01]}  Kd7 {[%clk 0:00:04]} 37. Kd2 {[%clk 0:02:01]}  Kxc7 {[%clk 0:00:04]} 38. Kc2 {[%clk 0:02:01]}  Be6 {[%clk 0:00:04]} 39. Nd4 {[%clk 0:02:01]}  Bd5 {[%clk 0:00:04]} 40. b3 {[%clk 0:02:00]}  a5 {[%clk 0:00:04]} 41. Bf8 {[%clk 0:02:00]}  g6 {[%clk 0:00:03]} 42. f4 {[%clk 0:01:58]}  f5 {[%clk 0:00:03]} 43. Kb2 {[%clk 0:01:48]}  Nb4 {[%clk 0:00:03]} 44. Bxb4 {[%clk 0:01:49]}  axb4 {[%clk 0:00:03]} 45. Nc2 {[%clk 0:01:50]}  Kb6 {[%clk 0:00:03]} 46. Nxb4 {[%clk 0:01:50]}  Be4 {[%clk 0:00:03]} 47. Kc3 {[%clk 0:01:51]}  Kb5 {[%clk 0:00:04]} 48. Nd3 {[%clk 0:01:50]}  Bd5 {[%clk 0:00:03]} 49. Ne5 {[%clk 0:01:51]}  Bg8 {[%clk 0:00:03]} 50. b4 {[%clk 0:01:51]}  Bd5 {[%clk 0:00:03]} 51. Nd7 {[%clk 0:01:51]}  Be6 {[%clk 0:00:03]} 52. Nf6 {[%clk 0:01:50]}  h6 {[%clk 0:00:02]} 53. Ne8 {[%clk 0:01:48]}  Bg8 {[%clk 0:00:01]} 54. Nd6+ {[%clk 0:01:47]}  Kc6 {[%clk 0:00:01]} 55. Nc4 {[%clk 0:01:47]}  Kb5 {[%clk 0:00:02]} 56. Ne5 {[%clk 0:01:48]}  g5 {[%clk 0:00:01]} 57. Nd3 {[%clk 0:01:46]}  Kc6 {[%clk 0:00:00]} 58. Kd4 {[%clk 0:01:46]} 1-0


[Site "https://www.chess.com"]

[Event "Titled Tuesday Blitz August 1 Early 2023"]
[White "Zaichenko, Daria"]
[Black "Hoang, Thi Bao Tram"]
[WhiteFideId "4197453"]
[BlackFideId "12401102"]
[WhiteElo "2275"]
[BlackElo "2474"]
[Result "0-1"]
[Round "2"]
[TimeControl "180+1"]
[Date "2023.08.01"]
[WhiteClock "0:00:36"]
[BlackClock "0:01:31"]
[Board "212"]

1. e4 {[%clk 0:02:53]}  c6 {[%clk 0:02:59]} 2. d4 {[%clk 0:02:52]}  d5 {[%clk 0:03:00]} 3. Nc3 {[%clk 0:02:52]}  dxe4 {[%clk 0:02:59]} 4. Nxe4 {[%clk 0:02:52]}  Bf5 {[%clk 0:03:00]} 5. Ng3 {[%clk 0:02:52]}  Bg6 {[%clk 0:03:01]} 6. h4 {[%clk 0:02:52]}  h6 {[%clk 0:03:01]} 7. h5 {[%clk 0:02:53]}  Bh7 {[%clk 0:03:00]} 8. Nf3 {[%clk 0:02:53]}  Nd7 {[%clk 0:03:00]} 9. Bd3 {[%clk 0:02:53]}  Bxd3 {[%clk 0:03:00]} 10. Qxd3 {[%clk 0:02:54]}  e6 {[%clk 0:03:01]} 11. Bd2 {[%clk 0:02:53]}  Ngf6 {[%clk 0:03:00]} 12. O-O-O {[%clk 0:02:53]}  Be7 {[%clk 0:02:56]} 13. Kb1 {[%clk 0:02:53]}  O-O {[%clk 0:02:53]} 14. Ne4 {[%clk 0:02:54]}  Nxe4 {[%clk 0:02:53]} 15. Qxe4 {[%clk 0:02:54]}  Nf6 {[%clk 0:02:51]} 16. Qe2 {[%clk 0:02:46]}  Qd5 {[%clk 0:02:51]} 17. Ne5 {[%clk 0:02:40]}  Qe4 {[%clk 0:02:47]} 18. Be3 {[%clk 0:02:40]}  Nd5 {[%clk 0:02:46]} 19. Rh3 {[%clk 0:02:21]}  Rad8 {[%clk 0:02:43]} 20. Ka1 {[%clk 0:01:57]}  Bg5 {[%clk 0:02:39]} 21. Ng4 {[%clk 0:01:47]}  Nf4 {[%clk 0:02:34]} 22. f3 {[%clk 0:01:44]}  Nxe2 {[%clk 0:02:22]} 23. fxe4 {[%clk 0:01:43]}  Bxe3 {[%clk 0:02:22]} 24. Rxe3 {[%clk 0:01:43]}  Nxd4 {[%clk 0:02:21]} 25. Kb1 {[%clk 0:01:38]}  c5 {[%clk 0:02:07]} 26. Red3 {[%clk 0:01:36]}  Nc6 {[%clk 0:02:06]} 27. Rxd8 {[%clk 0:01:33]}  Rxd8 {[%clk 0:02:06]} 28. Rxd8+ {[%clk 0:01:32]}  Nxd8 {[%clk 0:02:07]} 29. Ne5 {[%clk 0:01:33]}  b6 {[%clk 0:02:06]} 30. c3 {[%clk 0:01:29]}  Kf8 {[%clk 0:02:03]} 31. b4 {[%clk 0:01:29]}  Ke7 {[%clk 0:01:54]} 32. g4 {[%clk 0:01:25]}  f6 {[%clk 0:01:51]} 33. Ng6+ {[%clk 0:01:23]}  Kd6 {[%clk 0:01:51]} 34. Kc2 {[%clk 0:01:21]}  Nc6 {[%clk 0:01:50]} 35. bxc5+ {[%clk 0:01:13]}  Kxc5 {[%clk 0:01:45]} 36. Nf8 {[%clk 0:01:12]}  Kd6 {[%clk 0:01:44]} 37. Ng6 {[%clk 0:00:59]}  Ne5 {[%clk 0:01:43]} 38. Nxe5 {[%clk 0:01:00]}  Kxe5 {[%clk 0:01:43]} 39. Kd3 {[%clk 0:01:00]}  Kf4 {[%clk 0:01:43]} 40. Kc4 {[%clk 0:00:58]}  Kxe4 {[%clk 0:01:43]} 41. a4 {[%clk 0:00:56]}  e5 {[%clk 0:01:42]} 42. Kb5 {[%clk 0:00:48]}  Kd5 {[%clk 0:01:41]} 43. c4+ {[%clk 0:00:47]}  Kd4 {[%clk 0:01:36]} 44. a5 {[%clk 0:00:47]}  e4 {[%clk 0:01:34]} 45. c5 {[%clk 0:00:37]}  bxc5 {[%clk 0:01:32]} 46. Ka6 {[%clk 0:00:37]}  e3 {[%clk 0:01:32]} 47. Kxa7 {[%clk 0:00:37]}  e2 {[%clk 0:01:32]} 48. a6 {[%clk 0:00:38]}  e1=Q {[%clk 0:01:32]} 49. Ka8 {[%clk 0:00:38]}  Qe8+ {[%clk 0:01:31]} 50. Ka7 {[%clk 0:00:36]}  c4 {[%clk 0:01:31]} 0-1


[Site "https://www.chess.com"]

[Event "Titled Tuesday Blitz August 1 Early 2023"]
[White "Smietanska, Wiktoria"]
[Black "Yeritsyan, Hayk"]
[WhiteFideId "21869359"]
[BlackFideId "13307320"]
[WhiteElo "2263"]
[BlackElo "2470"]
[Result "0-1"]
[Round "2"]
[TimeControl "180+1"]
[Date "2023.08.01"]
[WhiteClock "0:01:09"]
[BlackClock "0:02:43"]
[Board "214"]

1. c4 {[%clk 0:03:00]}  c6 {[%clk 0:02:59]} 2. Nf3 {[%clk 0:02:58]}  d5 {[%clk 0:02:58]} 3. e3 {[%clk 0:02:59]}  Nf6 {[%clk 0:02:58]} 4. Nc3 {[%clk 0:02:58]}  e6 {[%clk 0:02:53]} 5. b3 {[%clk 0:02:57]}  Bd6 {[%clk 0:02:54]} 6. Bb2 {[%clk 0:02:57]}  Nbd7 {[%clk 0:02:54]} 7. d4 {[%clk 0:02:54]}  Qe7 {[%clk 0:02:55]} 8. Bd3 {[%clk 0:02:53]}  O-O {[%clk 0:02:55]} 9. O-O {[%clk 0:02:52]}  e5 {[%clk 0:02:54]} 10. dxe5 {[%clk 0:02:51]}  Nxe5 {[%clk 0:02:54]} 11. cxd5 {[%clk 0:02:43]}  Nxf3+ {[%clk 0:02:54]} 12. Qxf3 {[%clk 0:02:40]}  Bg4 {[%clk 0:02:54]} 13. Bxh7+ {[%clk 0:01:37]}  Kxh7 {[%clk 0:02:44]} 14. dxc6 {[%clk 0:01:12]}  Bxf3 {[%clk 0:02:42]} 15. gxf3 {[%clk 0:01:09]}  bxc6 {[%clk 0:02:43]} 0-1


[Site "https://www.chess.com"]

[Event "Titled Tuesday Blitz August 1 Early 2023"]
[White "MFatigue"]
[Black "Clawitter, Craig"]
[BlackFideId "2023105"]
[WhiteElo "2469"]
[BlackElo "2260"]
[Result "1-0"]
[Round "2"]
[TimeControl "180+1"]
[Date "2023.08.01"]
[WhiteClock "0:00:21"]
[BlackClock "0:00:00"]
[Board "215"]

1. e4 {[%clk 0:03:00]}  e6 {[%clk 0:02:58]} 2. d4 {[%clk 0:03:00]}  d5 {[%clk 0:02:57]} 3. Nc3 {[%clk 0:03:01]}  Bb4 {[%clk 0:02:56]} 4. e5 {[%clk 0:03:02]}  c5 {[%clk 0:02:56]} 5. a3 {[%clk 0:03:02]}  Bxc3+ {[%clk 0:02:54]} 6. bxc3 {[%clk 0:03:03]}  Ne7 {[%clk 0:02:55]} 7. Qg4 {[%clk 0:03:04]}  Qc7 {[%clk 0:02:55]} 8. Qxg7 {[%clk 0:03:04]}  Rg8 {[%clk 0:02:56]} 9. Qxh7 {[%clk 0:03:04]}  cxd4 {[%clk 0:02:56]} 10. Ne2 {[%clk 0:03:05]}  Nbc6 {[%clk 0:02:57]} 11. f4 {[%clk 0:03:05]}  dxc3 {[%clk 0:02:57]} 12. Qd3 {[%clk 0:03:06]}  d4 {[%clk 0:02:58]} 13. Nxd4 {[%clk 0:03:07]}  Nxd4 {[%clk 0:02:58]} 14. Qxd4 {[%clk 0:03:08]}  Bd7 {[%clk 0:02:59]} 15. Rg1 {[%clk 0:03:07]}  Nf5 {[%clk 0:02:59]} 16. Qf2 {[%clk 0:03:07]}  Qc6 {[%clk 0:02:59]} 17. Bd3 {[%clk 0:03:07]}  Qd5 {[%clk 0:02:56]} 18. g4 {[%clk 0:03:03]}  Nd4 {[%clk 0:02:47]} 19. Rg3 {[%clk 0:03:03]}  Qh1+ {[%clk 0:02:09]} 20. Qf1 {[%clk 0:02:32]}  Qxh2 {[%clk 0:01:53]} 21. Qg2 {[%clk 0:02:32]}  Qh4 {[%clk 0:01:41]} 22. Qh3 {[%clk 0:02:14]}  Qxh3 {[%clk 0:00:56]} 23. Rxh3 {[%clk 0:02:15]}  O-O-O {[%clk 0:00:57]} 24. Be3 {[%clk 0:02:03]}  Ba4 {[%clk 0:00:47]} 25. O-O-O {[%clk 0:01:42]}  Rxg4 {[%clk 0:00:34]} 26. Rh7 {[%clk 0:01:37]}  Rg2 {[%clk 0:00:29]} 27. Bxd4 {[%clk 0:01:32]}  Rxd4 {[%clk 0:00:29]} 28. Rxf7 {[%clk 0:01:32]}  Bd7 {[%clk 0:00:10]} 29. Rh1 {[%clk 0:01:11]}  Rf2 {[%clk 0:00:09]} 30. Rh4 {[%clk 0:00:57]}  a5 {[%clk 0:00:03]} 31. Kb1 {[%clk 0:00:51]}  b5 {[%clk 0:00:03]} 32. Rh8+ {[%clk 0:00:46]}  Kc7 {[%clk 0:00:02]} 33. Rhf8 {[%clk 0:00:46]}  b4 {[%clk 0:00:01]} 34. axb4 {[%clk 0:00:46]}  axb4 {[%clk 0:00:01]} 35. f5 {[%clk 0:00:41]}  b3 {[%clk 0:00:01]} 36. fxe6 {[%clk 0:00:26]}  bxc2+ {[%clk 0:00:02]} 37. Bxc2 {[%clk 0:00:23]}  Rxf7 {[%clk 0:00:01]} 38. Rxf7 {[%clk 0:00:22]}  Kc6 {[%clk 0:00:01]} 39. Rxd7 {[%clk 0:00:20]}  Rxd7 {[%clk 0:00:02]} 40. exd7 {[%clk 0:00:21]}  Kxd7 {[%clk 0:00:02]} 41. Bf5+ {[%clk 0:00:21]}  Ke7 {[%clk 0:00:00]} 42. Kc2 {[%clk 0:00:21]} 1-0


[Site "https://www.chess.com"]